bitfinex/quotes_BTCUSD_20250614
["timestamp","ask_amount","ask_price","bid_price","bid_amount"]
[1749930152389,0.55241916,105120.0,105110.0,0.00014287]
[1749930152603,0.52131916,105120.0,105110.0,0.00014287]
[1749930153813,0.57083132,105120.0,105110.0,0.00014287]
[1749930157347,0.58089132,105120.0,105110.0,0.00014287]
[1749930159670,0.59651539,105120.0,105110.0,0.00014287]
[1749930159867,0.59651544,105120.0,105110.0,0.00014287]
[1749930160637,0.60148717,105120.0,105110.0,0.00014287]
[1749930161576,0.56745089,105120.0,105110.0,0.00014287]
[1749930161772,0.23163346,105120.0,105110.0,0.00014287]
[1749930161988,0.41519616,105120.0,105110.0,0.00014287]
[1749930162181,0.42189221,105120.0,105110.0,0.00014287]
[1749930163083,0.40626809,105120.0,105110.0,0.00014287]
[1749930163330,0.42189221,105120.0,105110.0,0.00014287]
[1749930163771,0.76189169,105120.0,105110.0,0.00014287]
[1749930163994,0.75519584,105120.0,105110.0,0.00014287]
[1749930164233,0.76189163,105120.0,105110.0,0.00014287]
[1749930164470,0.76189161,105120.0,105110.0,0.03094287]
[1749930164649,0.75296385,105120.0,105110.0,0.03094287]
[1749930164905,0.76189152,105120.0,105110.0,0.03094287]
[1749930165142,0.76189151,105120.0,105110.0,0.03094287]
[1749930165358,0.71403576,105120.0,105110.0,0.03094287]
[1749930165572,0.87942383,105120.0,105110.0,0.03094287]
[1749930165789,0.88835139,105120.0,105110.0,0.03094287]
[1749930166010,0.88835149,105120.0,105110.0,0.03094287]
[1749930166221,0.87942385,105120.0,105110.0,0.03094287]
[1749930166628,0.87942392,105120.0,105110.0,0.03094287]
[1749930166833,0.88165589,105120.0,105110.0,0.03094287]
[1749930167017,0.88835174,105120.0,105110.0,0.03094287]
[1749930167688,0.88165589,105120.0,105110.0,0.03094287]
[1749930167895,0.87942394,105120.0,105110.0,0.03094287]
[1749930168105,0.88165589,105120.0,105110.0,0.03094287]
[1749930168313,0.88835183,105120.0,105110.0,0.03094287]
[1749930168762,0.88835202,105120.0,105110.0,0.03094287]
[1749930168978,0.88835226,105120.0,105110.0,0.03094287]
[1749930169179,0.88835223,105120.0,105110.0,0.03094287]
[1749930169383,0.88835225,105120.0,105110.0,0.03094287]
[1749930169587,0.88835224,105120.0,105110.0,0.03094287]
[1749930169793,0.88835223,105120.0,105110.0,0.03094287]
[1749930170219,0.88835222,105120.0,105110.0,0.03094287]
[1749930170449,0.88835223,105120.0,105110.0,0.03094287]
[1749930170676,0.88165611,105120.0,105110.0,0.03094287]
[1749930170906,0.87942409,105120.0,105110.0,0.03094287]
[1749930171107,0.8816561,105120.0,105110.0,0.03094287]
[1749930171335,0.8883521,105120.0,105110.0,0.03094287]
[1749930171765,0.90788221,105120.0,105110.0,0.03094287]
[1749930171967,0.91681022,105120.0,105110.0,0.03094287]
[1749930172422,0.60121161,105120.0,105110.0,0.25131972]
[1749930172677,0.06821553,105120.0,105110.0,0.30793859]
[1749930172913,0.19046935,105120.0,105110.0,0.31745179]
[1749930173153,0.53046935,105120.0,105110.0,0.31745179]
[1749930173394,0.7207281,105120.0,105110.0,0.27986042]
[1749930173629,0.35389831,105120.0,105110.0,0.28937362]
[1749930173850,0.35448385,105120.0,105110.0,0.28937362]
[1749930174086,0.36399615,105120.0,105110.0,0.28937362]
[1749930174307,0.34497173,105120.0,105110.0,0.28937362]
[1749930174537,0.35448385,105120.0,105110.0,0.28937362]
[1749930175046,0.34497173,105120.0,105110.0,0.28937362]
[1749930175511,0.00497173,105120.0,105110.0,0.38561538]
[1749930175733,0.34951121,105130.0,105120.0,0.27939646]
[1749930175980,0.52545409,105130.0,105120.0,0.27939646]
[1749930176211,0.50643121,105130.0,105120.0,0.27939646]
[1749930176670,0.5159426,105130.0,105120.0,0.27939646]
[1749930176916,0.51594251,105130.0,105120.0,0.27939646]
[1749930177152,0.51994251,105130.0,105120.0,0.27939646]
[1749930177639,0.0135113,105130.0,105120.0,0.33790488]
[1749930178091,0.004,105130.0,105120.0,0.33790488]
[1749930180005,0.01351121,105130.0,105120.0,0.33790488]
[1749930180454,0.004,105130.0,105120.0,0.33790488]
[1749930181979,0.004,105130.0,105120.0,0.43414664]
[1749930182186,0.004,105130.0,105120.0,1.20245611]
[1749930182613,0.67917135,105160.0,105150.0,0.27422445]
[1749930182829,0.85452312,105160.0,105150.0,0.28373422]
[1749930182999,0.84618547,105160.0,105150.0,0.2932439]
[1749930183214,0.70404288,105160.0,105150.0,0.30275349]
[1749930183411,0.71355206,105160.0,105150.0,0.34623146]
[1749930183610,0.71355283,105160.0,105150.0,0.34623146]
[1749930183828,0.71402897,105160.0,105150.0,0.34623146]
[1749930184044,0.71402898,105160.0,105150.0,0.34623146]
[1749930184271,0.71402899,105160.0,105150.0,0.34623146]
[1749930184473,0.70451965,105160.0,105150.0,0.34623146]
[1749930184673,0.69782714,105160.0,105150.0,0.34623146]
[1749930184818,0.71702893,105160.0,105150.0,0.32721219]
[1749930185014,0.70752016,105160.0,105150.0,0.28373422]
[1749930185340,0.8851975,105160.0,105150.0,0.26114435]
[1749930185692,0.8762742,105160.0,105150.0,0.26714435]
[1749930185901,0.88519752,105160.0,105150.0,0.25763458]
[1749930186104,0.86899591,105160.0,105150.0,0.26714444]
[1749930186293,0.8756884,105160.0,105150.0,0.26714444]
[1749930186506,0.86007258,105160.0,105150.0,0.26714444]
[1749930186707,0.87568839,105160.0,105150.0,0.26714444]
[1749930186908,0.87568849,105160.0,105150.0,0.26714444]
[1749930187113,0.86899596,105160.0,105150.0,0.27665421]
[1749930187258,0.79337804,105160.0,105150.0,0.27665421]
[1749930187500,0.79114719,105160.0,105150.0,0.27665421]
[1749930187708,0.80007059,105160.0,105150.0,0.27665421]
[1749930187913,0.79337804,105160.0,105150.0,0.27665421]
[1749930188170,0.79114719,105160.0,105150.0,0.27665421]
[1749930188456,0.80007062,105160.0,105150.0,0.25763458]
[1749930188687,0.79337806,105160.0,105150.0,0.25763458]
[1749930188916,0.7911472,105160.0,105150.0,0.24812463]
[1749930189135,0.78163798,105160.0,105150.0,0.25763458]
[1749930189351,0.79056141,105160.0,105150.0,0.25763458]
[1749930189570,1.10220875,105160.0,105150.0,0.006]
[1749930189788,1.25268392,105160.0,105150.0,0.006]
[1749930190031,1.24376062,105160.0,105150.0,0.006]
[1749930190269,1.25268539,105160.0,105150.0,0.006]
[1749930190518,1.2459922,105160.0,105150.0,0.006]
[1749930190746,1.24376118,105160.0,105150.0,0.006]
[1749930190989,1.25268551,105160.0,105150.0,0.006]
[1749930191565,1.23706794,105160.0,105150.0,0.006]
[1749930191697,1.24599227,105160.0,105150.0,0.006]
[1749930191900,1.25268551,105160.0,105150.0,0.006]
[1749930192108,1.25268552,105160.0,105150.0,0.006]
[1749930192313,1.24376119,105160.0,105150.0,0.006]
[1749930192515,1.24599227,105160.0,105150.0,0.006]
[1749930192720,1.25268552,105160.0,105150.0,0.006]
[1749930192921,1.24599227,105160.0,105150.0,0.006]
[1749930193136,1.25268556,105160.0,105150.0,0.006]
[1749930193377,1.21076122,105160.0,105150.0,0.006]
[1749930193575,1.23265194,105160.0,105150.0,0.006]
[1749930193834,1.24826962,105160.0,105150.0,0.006]
[1749930194026,1.23265194,105160.0,105150.0,0.006]
[1749930194197,1.24826962,105160.0,105150.0,0.006]
[1749930194645,1.1521204,105160.0,105150.0,0.006]
[1749930194787,1.15212039,105160.0,105150.0,0.006]
[1749930194997,1.15039734,105160.0,105150.0,0.006]
[1749930195211,1.14147296,105160.0,105150.0,0.006]
[1749930195638,1.15039734,105160.0,105150.0,0.006]
[1749930195876,1.15709062,105160.0,105150.0,0.006]
[1749930196077,1.24654656,105160.0,105150.0,0.006]
[1749930196293,1.25323986,105160.0,105150.0,0.006]
[1749930196453,1.23762218,105160.0,105150.0,0.006]
[1749930196649,1.23934524,105160.0,105150.0,0.006]
[1749930196848,1.27064524,105160.0,105150.0,0.006]
[1749930197115,1.27287645,105160.0,105150.0,0.006]
[1749930197313,1.2795699,105160.0,105150.0,0.006]
[1749930197472,1.27287672,105160.0,105150.0,0.006]
[1749930197675,1.27957031,105160.0,105150.0,0.004]
[1749930197921,0.21875457,105140.0,105130.0,0.28137475]
[1749930198241,0.36612417,105140.0,105130.0,0.27186317]
[1749930198445,0.37500899,105140.0,105130.0,0.27186317]
[1749930198656,0.37500898,105140.0,105130.0,0.27186317]
[1749930199133,0.75662221,105140.0,105130.0,0.0313]
[1749930199351,0.68706256,105140.0,105130.0,0.27305259]
[1749930199553,0.69598767,105140.0,105130.0,0.27305259]
[1749930199677,0.69598768,105140.0,105130.0,0.27305259]
[1749930199879,0.68706256,105140.0,105130.0,0.27305259]
[1749930200418,0.70268178,105140.0,105130.0,0.27305259]
[1749930200615,0.69375652,105140.0,105130.0,0.28256435]
[1749930200816,0.68706256,105140.0,105130.0,0.26354065]
[1749930201018,0.69375651,105140.0,105130.0,0.27305268]
[1749930201193,0.70268178,105140.0,105130.0,0.27305268]
[1749930201412,0.69375651,105140.0,105130.0,0.27305268]
[1749930201623,0.70268178,105140.0,105130.0,0.27305268]
[1749930202015,0.69375651,105140.0,105130.0,0.27305268]
[1749930202235,0.70268178,105140.0,105130.0,0.27305268]
[1749930202756,0.69598783,105140.0,105130.0,0.28256462]
[1749930203032,0.69598783,105140.0,105130.0,0.0733]
[1749930203266,0.70268178,105140.0,105130.0,0.0733]
[1749930204238,0.69598783,105140.0,105130.0,0.0733]
[1749930204482,0.69598783,105140.0,105130.0,0.27305259]
[1749930204483,0.69375651,105140.0,105130.0,0.27305259]
[1749930204727,0.69375648,105140.0,105130.0,0.27305259]
[1749930204959,0.70268178,105140.0,105130.0,0.27305259]
[1749930205206,0.70268178,105140.0,105130.0,0.28256444]
[1749930205454,0.6937565,105140.0,105130.0,0.2920762]
[1749930205690,0.69598781,105140.0,105130.0,0.2920762]
[1749930205927,0.70268178,105140.0,105130.0,0.2920762]
[1749930206166,0.69598783,105140.0,105130.0,0.2920762]
[1749930206402,0.70268178,105140.0,105130.0,0.2920762]
[1749930206626,0.68706256,105140.0,105130.0,0.2920762]
[1749930206862,0.70268178,105140.0,105130.0,0.2920762]
[1749930207068,0.69598783,105140.0,105130.0,0.2920762]
[1749930207278,0.69375651,105140.0,105130.0,0.2920762]
[1749930207493,0.69598783,105140.0,105130.0,0.2920762]
[1749930207706,0.70268178,105140.0,105130.0,0.0733]
[1749930208134,0.70268178,105140.0,105130.0,0.08281203]
[1749930208337,0.69375651,105140.0,105130.0,0.08281203]
[1749930208541,0.69598783,105140.0,105130.0,0.28256462]
[1749930208742,0.68706256,105140.0,105130.0,0.28256462]
[1749930208970,0.70268178,105140.0,105130.0,0.28256462]
[1749930209200,0.69375651,105140.0,105130.0,0.28256462]
[1749930209374,0.70268178,105140.0,105130.0,0.28256462]
[1749930209570,0.68706256,105140.0,105130.0,0.28256462]
[1749930209791,0.70268178,105140.0,105130.0,0.0733]
[1749930209996,0.70268181,105140.0,105130.0,0.0733]
[1749930210262,0.7026818,105140.0,105130.0,0.0733]
[1749930210481,0.69598784,105140.0,105130.0,0.0733]
[1749930210695,0.70268184,105140.0,105130.0,0.0733]
[1749930210903,0.69375653,105140.0,105130.0,0.0733]
[1749930211104,0.70268182,105140.0,105130.0,0.10346083]
[1749930211324,0.70268184,105140.0,105130.0,0.10346083]
[1749930211576,0.68706256,105140.0,105130.0,0.0733]
[1749930211744,0.69598786,105140.0,105130.0,0.27305268]
[1749930211958,0.68706256,105140.0,105130.0,0.0733]
[1749930212294,0.70268181,105140.0,105130.0,0.0733]
[1749930212494,0.70268183,105140.0,105130.0,0.0403]
[1749930212711,0.78046468,105140.0,105130.0,0.0403]
[1749930212923,0.78046468,105140.0,105130.0,0.009]
[1749930212924,1.07506444,105140.0,105130.0,0.009]
[1749930213141,1.27506602,105140.0,105130.0,0.009]
[1749930213353,1.27506602,105140.0,105110.0,0.0303]
[1749930213354,0.22835229,105100.0,105090.0,0.19982522]
[1749930213615,0.22835229,105100.0,105090.0,0.31509755]
[1749930213616,0.03805734,105100.0,105090.0,0.31509755]
[1749930213848,0.03805716,105100.0,105090.0,0.38731256]
[1749930214045,0.01902813,105100.0,105090.0,0.38731256]
[1749930214280,0.02854242,105100.0,105090.0,0.38731256]
[1749930214495,0.19430845,105110.0,105100.0,0.27202398]
[1749930214703,0.17595756,105110.0,105100.0,0.27202398]
[1749930215061,0.17595756,105110.0,105100.0,0.28153809]
[1749930215259,0.18547067,105110.0,105100.0,0.28153809]
[1749930215461,0.18547067,105110.0,105100.0,0.28153818]
[1749930215835,0.18547067,105110.0,105100.0,0.29305229]
[1749930216512,0.27650145,105110.0,105100.0,0.29305229]
[1749930217050,0.22440688,105110.0,105100.0,0.29305229]
[1749930217256,0.23392063,105110.0,105100.0,0.29305229]
[1749930217656,0.23692063,105110.0,105100.0,0.29405229]
[1749930218077,0.22740688,105110.0,105100.0,0.29405229]
[1749930218244,0.23692054,105110.0,105100.0,0.29405229]
[1749930218669,0.22740688,105110.0,105100.0,0.29405229]
[1749930219406,0.23692054,105110.0,105100.0,0.29405229]
[1749930220195,0.24643429,105110.0,105100.0,0.28453818]
[1749930220403,0.23692054,105110.0,105100.0,0.29405229]
[1749930220604,0.22740688,105110.0,105100.0,0.29405229]
[1749930220811,0.23692054,105110.0,105100.0,0.29405229]
[1749930221383,0.22740688,105110.0,105100.0,0.29405229]
[1749930222084,0.23692045,105110.0,105100.0,0.29405229]
[1749930226590,0.24643411,105110.0,105100.0,0.29405229]
[1749930227140,0.236921,105110.0,105100.0,0.2655096]
[1749930227349,0.42719785,105110.0,105100.0,0.25423827]
[1749930227552,0.236921,105110.0,105100.0,0.26375238]
[1749930227757,0.21789377,105110.0,105100.0,0.29665238]
[1749930228589,0.2178934,105110.0,105100.0,0.29665238]
[1749930229837,0.22740688,105110.0,105100.0,0.29665238]
[1749930230255,0.23692054,105110.0,105100.0,0.29665238]
[1749930230458,0.22740688,105110.0,105100.0,0.29665238]
[1749930230887,0.23692054,105110.0,105100.0,0.29665238]
[1749930232605,0.42719739,105110.0,105100.0,0.27762398]
[1749930232815,0.42719739,105110.0,105100.0,0.24472398]
[1749930233031,0.41768428,105110.0,105100.0,0.25423845]
[1749930233274,0.42719812,105110.0,105100.0,0.25423845]
[1749930233713,0.23692127,105110.0,105100.0,0.26375265]
[1749930233925,0.23692127,105110.0,105100.0,0.26375283]
[1749930234139,0.23692127,105110.0,105100.0,0.27326703]
[1749930234792,0.42719812,105110.0,105100.0,0.27326703]
[1749930236563,0.42719812,105110.0,105100.0,0.24472416]
[1749930236790,0.42719812,105110.0,105100.0,0.25423863]
[1749930237480,0.41768473,105110.0,105100.0,0.24472416]
[1749930237710,0.44626789,105110.0,105100.0,0.0354]
[1749930238666,0.81886789,105110.0,105100.0,0.003]
[1749930239366,0.78077125,105110.0,105100.0,0.003]
[1749930239833,0.78077125,105110.0,105100.0,0.0263]
[1749930240280,0.79639523,105110.0,105100.0,0.0263]
[1749930240736,0.78746723,105110.0,105100.0,0.0263]
[1749930241001,0.79639521,105110.0,105100.0,0.0263]
[1749930241271,0.78077125,105110.0,105100.0,0.0263]
[1749930241499,0.79639532,105110.0,105100.0,0.0263]
[1749930242179,0.7963953,105110.0,105100.0,0.0263]
[1749930242404,0.82429506,105110.0,105100.0,0.0263]
[1749930242630,0.81759904,105110.0,105100.0,0.0263]
[1749930242882,0.81536703,105110.0,105100.0,0.0263]
[1749930243111,0.75263202,105110.0,105100.0,0.0263]
[1749930243361,0.76156005,105110.0,105100.0,0.0263]
[1749930243580,0.75263202,105110.0,105100.0,0.0263]
[1749930243781,0.745936,105110.0,105100.0,0.0263]
[1749930244188,0.76156005,105110.0,105100.0,0.0263]
[1749930244392,0.75263202,105110.0,105100.0,0.0263]
[1749930244643,0.57682029,105110.0,105100.0,0.0263]
[1749930244878,0.72655624,105110.0,105100.0,0.07736733]
[1749930245118,0.73548426,105110.0,105100.0,0.07736733]
[1749930245352,0.73548424,105110.0,105100.0,0.05176733]
[1749930245610,0.73548423,105110.0,105100.0,0.05176733]
[1749930245843,0.78028976,105110.0,105100.0,0.05176733]
[1749930246081,0.76466578,105110.0,105100.0,0.0263]
[1749930246306,0.78028981,105110.0,105100.0,0.0263]
[1749930246783,0.7802898,105110.0,105100.0,0.0263]
[1749930247024,0.77136179,105110.0,105100.0,0.0263]
[1749930247281,0.78028981,105110.0,105100.0,0.0263]
[1749930247745,0.77136179,105110.0,105100.0,0.0263]
[1749930248190,0.7735938,105110.0,105100.0,0.0263]
[1749930248394,0.78028981,105110.0,105100.0,0.0263]
[1749930248639,0.7802898,105110.0,105100.0,0.0263]
[1749930248846,0.77136179,105110.0,105100.0,0.0263]
[1749930249081,0.78028981,105110.0,105100.0,0.0263]
[1749930249291,0.78028982,105110.0,105100.0,0.03581474]
[1749930249508,0.78028981,105110.0,105100.0,0.0263]
[1749930249723,0.76466578,105110.0,105100.0,0.0263]
[1749930249951,0.7802898,105110.0,105100.0,0.0263]
[1749930250179,0.77359379,105110.0,105100.0,0.0263]
[1749930250420,0.77136179,105110.0,105100.0,0.0263]
[1749930250674,0.78698581,105110.0,105100.0,0.0263]
[1749930250854,0.78028981,105110.0,105100.0,0.0263]
[1749930251118,0.77136179,105110.0,105100.0,0.0263]
[1749930251323,0.78698583,105110.0,105100.0,0.0263]
[1749930251523,0.78028981,105110.0,105100.0,0.0263]
[1749930251726,0.77805781,105110.0,105100.0,0.0263]
[1749930251947,0.78698582,105110.0,105100.0,0.0263]
[1749930252185,0.7780578,105110.0,105100.0,0.0263]
[1749930252417,0.78698581,105110.0,105100.0,0.0263]
[1749930253219,0.7780578,105110.0,105100.0,0.0263]
[1749930253399,0.78698582,105110.0,105100.0,0.0263]
[1749930253607,0.77136179,105110.0,105100.0,0.0263]
[1749930254007,0.86751101,105110.0,105100.0,0.0263]
[1749930254784,0.89251101,105110.0,105100.0,0.0263]
[1749930255809,0.79636179,105110.0,105100.0,0.003]
[1749930256926,0.82533904,105110.0,105100.0,0.003]
[1749930259036,0.82533904,105110.0,105100.0,0.0277]
[1749930259233,0.62737904,105110.0,105100.0,0.0277]
[1749930259438,0.82533904,105110.0,105100.0,0.0277]
[1749930261175,0.83426709,105110.0,105100.0,0.0277]
[1749930261301,0.83203507,105110.0,105100.0,0.0277]
[1749930261507,0.83426709,105110.0,105100.0,0.0277]
[1749930261709,0.83203507,105110.0,105100.0,0.0277]
[1749930261910,0.84096312,105110.0,105100.0,0.0277]
[1749930262352,0.81596262,105110.0,105100.0,0.0277]
[1749930262763,0.80703486,105110.0,105100.0,0.0277]
[1749930263083,0.8092668,105110.0,105100.0,0.0277]
[1749930263289,0.81596262,105110.0,105100.0,0.0277]
[1749930264312,0.8092668,105110.0,105100.0,0.0277]
[1749930264484,0.80703486,105110.0,105100.0,0.0277]
[1749930264689,0.81596262,105110.0,105100.0,0.0277]
[1749930264890,0.8092668,105110.0,105100.0,0.0277]
[1749930265301,0.81596262,105110.0,105100.0,0.0277]
[1749930265502,0.8092668,105110.0,105100.0,0.0277]
[1749930265700,0.81596262,105110.0,105100.0,0.0277]
[1749930265962,0.8092668,105110.0,105100.0,0.0277]
[1749930266372,0.80033904,105110.0,105100.0,0.0277]
[1749930266560,0.81596262,105110.0,105100.0,0.0277]
[1749930266952,0.8092668,105110.0,105100.0,0.0277]
[1749930267324,0.80703486,105110.0,105100.0,0.0277]
[1749930267942,0.81596262,105110.0,105100.0,0.0277]
[1749930268158,0.8092668,105110.0,105100.0,0.0277]
[1749930268360,0.81596262,105110.0,105100.0,0.0277]
[1749930268604,0.80033904,105110.0,105100.0,0.0277]
[1749930269009,0.81596262,105110.0,105100.0,0.0277]
[1749930269415,0.80703486,105110.0,105100.0,0.0277]
[1749930269636,0.81596262,105110.0,105100.0,0.0277]
[1749930270742,0.80926678,105110.0,105100.0,0.0277]
[1749930270896,0.80703484,105110.0,105100.0,0.0277]
[1749930271099,0.80033904,105110.0,105100.0,0.0277]
[1749930271508,0.8092668,105110.0,105100.0,0.0277]
[1749930271731,0.81596262,105110.0,105100.0,0.0277]
[1749930271919,0.8092668,105110.0,105100.0,0.0277]
[1749930272124,0.81596262,105110.0,105100.0,0.0277]
[1749930272475,0.8092668,105110.0,105100.0,0.0277]
[1749930272920,0.81596262,105110.0,105100.0,0.0277]
[1749930273125,0.80703486,105110.0,105100.0,0.0277]
[1749930273306,0.81596262,105110.0,105100.0,0.0277]
[1749930273544,0.80703486,105110.0,105100.0,0.0277]
[1749930273755,0.61800262,105110.0,105100.0,0.0277]
[1749930273956,0.81592262,105110.0,105100.0,0.0277]
[1749930274368,0.80695486,105110.0,105100.0,0.0277]
[1749930274576,0.81588262,105110.0,105100.0,0.0277]
[1749930274786,0.8158826,105110.0,105100.0,0.0277]
[1749930274991,0.80918679,105110.0,105100.0,0.0277]
[1749930275195,0.80918673,105110.0,105100.0,0.0277]
[1749930275404,0.80695483,105110.0,105100.0,0.0277]
[1749930275616,0.81588255,105110.0,105100.0,0.0277]
[1749930276241,0.59219866,105110.0,105100.0,0.30123683]
[1749930276448,0.463939,105110.0,105100.0,0.30123683]
[1749930276855,0.45442534,105110.0,105100.0,0.30123683]
[1749930277269,0.46393891,105110.0,105100.0,0.30123683]
[1749930277893,0.47345257,105110.0,105100.0,0.30123683]
[1749930278099,0.43237257,105110.0,105100.0,0.30123683]
[1749930278310,0.43237257,105110.0,105100.0,0.27213809]
[1749930278521,0.61313631,105110.0,105100.0,0.26262398]
[1749930278723,0.61313695,105110.0,105100.0,0.27213827]
[1749930279354,0.60362347,105110.0,105100.0,0.27213827]
[1749930279546,0.41334662,105110.0,105100.0,0.27213827]
[1749930280052,0.61255064,105110.0,105100.0,0.27213827]
[1749930280272,0.61255086,105110.0,105100.0,0.27213827]
[1749930280599,0.41334662,105110.0,105100.0,0.28165247]
[1749930280799,0.42227398,105110.0,105100.0,0.28165247]
[1749930281002,0.41334662,105110.0,105100.0,0.28165247]
[1749930282407,0.60362347,105110.0,105100.0,0.26262398]
[1749930282633,0.60362347,105110.0,105100.0,0.27213818]
[1749930282833,0.61255066,105110.0,105100.0,0.26262398]
[1749930283461,0.61255095,105110.0,105100.0,0.26262398]
[1749930283665,0.60362347,105110.0,105100.0,0.26262398]
[1749930283871,0.61255095,105110.0,105100.0,0.27213827]
[1749930284078,0.60362347,105110.0,105100.0,0.27213827]
[1749930284519,0.61255095,105110.0,105100.0,0.27213827]
[1749930284978,0.60362347,105110.0,105100.0,0.27213827]
[1749930288603,0.58459624,105110.0,105100.0,0.0533]
[1749930288821,0.58459624,105110.0,105100.0,0.25310951]
[1749930289052,0.58459624,105110.0,105100.0,0.2531096]
[1749930291437,0.62567624,105110.0,105100.0,0.2531096]
[1749930291842,0.62567624,105110.0,105100.0,0.26262416]
[1749930292252,0.63460399,105110.0,105100.0,0.26262416]
[1749930292659,0.62567624,105110.0,105100.0,0.26262416]
[1749930292842,0.634604,105110.0,105100.0,0.26262416]
[1749930293464,0.62567624,105110.0,105100.0,0.26262416]
[1749930293676,0.634604,105110.0,105100.0,0.26262416]
[1749930294851,0.62567624,105110.0,105100.0,0.26262416]
[1749930295053,0.634604,105110.0,105100.0,0.26262416]
[1749930296330,0.62567624,105110.0,105100.0,0.26262416]
[1749930296991,0.634604,105110.0,105100.0,0.26262416]
[1749930297355,0.63460398,105110.0,105100.0,0.26262416]
[1749930298140,0.63460398,105110.0,105100.0,0.27213863]
[1749930298547,0.4538407,105110.0,105100.0,0.28165292]
[1749930298757,0.45384066,105110.0,105100.0,0.28165292]
[1749930298961,0.63518981,105110.0,105100.0,0.28165292]
[1749930299167,0.64411728,105110.0,105100.0,0.28165292]
[1749930299383,0.64411728,105110.0,105100.0,0.27213863]
[1749930299588,0.64411729,105110.0,105100.0,0.26262416]
[1749930299794,0.6441173,105110.0,105100.0,0.27213863]
[1749930299967,0.63518981,105110.0,105100.0,0.27213863]
[1749930300378,0.75655298,105110.0,105100.0,0.21799495]
[1749930300608,0.80000237,105110.0,105100.0,0.003]
[1749930300813,0.99107467,105110.0,105100.0,0.003]
[1749930301218,1.03878346,105110.0,105100.0,0.003]
[1749930301425,1.05208698,105110.0,105100.0,0.003]
[1749930301616,1.12770492,105110.0,105100.0,0.003]
[1749930301837,1.15171985,105110.0,105100.0,0.003]
[1749930302048,1.1829515,105110.0,105100.0,0.002]
[1749930302249,1.14502311,105110.0,105100.0,0.004]
[1749930302456,1.14502311,105110.0,105100.0,0.002]
[1749930302457,1.18964845,105110.0,105100.0,0.002]
[1749930302658,0.20934373,105090.0,105080.0,0.22524726]
[1749930303030,0.19982853,105090.0,105080.0,0.2157308]
[1749930303434,0.19982853,105090.0,105080.0,0.22524726]
[1749930304022,0.19982853,105090.0,105080.0,0.23476363]
[1749930304221,0.19982853,105090.0,105080.0,0.26877991]
[1749930304429,0.19982853,105090.0,105080.0,0.27577991]
[1749930304630,0.20082853,105090.0,105080.0,0.27577991]
[1749930305236,0.20082853,105090.0,105080.0,0.25674726]
[1749930305458,0.19131306,105090.0,105080.0,0.23224726]
[1749930306346,0.19131306,105090.0,105080.0,0.24176363]
[1749930306846,0.19131306,105090.0,105080.0,0.23224726]
[1749930307093,0.19131306,105090.0,105080.0,0.2227308]
[1749930307316,0.19131306,105090.0,105080.0,0.27748018]
[1749930307763,0.19131306,105090.0,105080.0,0.28699646]
[1749930308346,0.19131306,105090.0,105080.0,0.29651265]
[1749930308957,0.19131306,105090.0,105080.0,0.28699646]
[1749930310688,0.20082862,105090.0,105080.0,0.29651265]
[1749930311583,0.20082862,105090.0,105080.0,0.2965122]
[1749930312021,0.02003085,105090.0,105080.0,0.2965122]
[1749930312234,0.06107085,105090.0,105080.0,0.29651166]
[1749930312455,0.26089956,105090.0,105080.0,0.29651166]
[1749930312855,0.26089956,105090.0,105080.0,0.28699574]
[1749930313526,0.26089956,105090.0,105080.0,0.25844717]
[1749930313762,0.25138427,105090.0,105080.0,0.24176336]
[1749930313983,0.33218129,105090.0,105080.0,0.24176372]
[1749930314427,0.25138427,105090.0,105080.0,0.24176372]
[1749930314637,0.25138427,105090.0,105080.0,0.23224735]
[1749930314841,0.24186871,105090.0,105080.0,0.0324]
[1749930317132,0.24186871,105090.0,105080.0,0.23224763]
[1749930318795,0.23235306,105090.0,105080.0,0.0324]
[1749930320544,0.76260391,105090.0,105080.0,0.0324]
[1749930320756,0.78830391,105090.0,105080.0,0.0324]
[1749930321188,0.7950011,105090.0,105080.0,0.0324]
[1749930321397,0.7155332,105090.0,105080.0,0.007]
[1749930321619,0.91553341,105090.0,105080.0,0.007]
[1749930321831,0.91553354,105090.0,105080.0,0.007]
[1749930322041,0.90883567,105090.0,105080.0,0.007]
[1749930322257,1.01168276,105090.0,105080.0,0.007]
[1749930322464,0.9155336,105090.0,105080.0,0.006]
[1749930322887,0.91653367,105090.0,105080.0,0.006]
[1749930323110,0.53984754,105080.0,105070.0,0.0243]
[1749930323315,0.69660754,105080.0,105070.0,0.0243]
[1749930323525,0.70330552,105080.0,105070.0,0.0243]
[1749930323937,0.69660754,105080.0,105070.0,0.0243]
[1749930324381,0.70430554,105080.0,105070.0,0.0293]
[1749930324570,0.72512831,105080.0,105070.0,0.0293]
[1749930324800,0.82921292,105080.0,105070.0,0.0293]
[1749930324986,1.06121095,105080.0,105070.0,0.0293]
[1749930325196,1.05451292,105080.0,105070.0,0.0293]
[1749930325645,1.03369015,105080.0,105070.0,0.005]
[1749930326690,1.03269015,105080.0,105070.0,0.001]
[1749930327123,0.19986657,105070.0,105060.0,0.0243]
[1749930327770,0.53986657,105070.0,105060.0,0.0243]
[1749930328405,0.54488642,105070.0,105060.0,0.0243]
[1749930328632,0.74784595,105070.0,105060.0,0.0243]
[1749930328855,0.19991273,105050.0,105040.0,0.0488]
[1749930329701,0.23943105,105050.0,105040.0,0.05832018]
[1749930330347,0.23943105,105050.0,105040.0,0.06032018]
[1749930330560,0.29314151,105050.0,105040.0,0.25872374]
[1749930330795,0.29414151,105050.0,105040.0,0.26824374]
[1749930331440,0.29414151,105050.0,105040.0,0.27776365]
[1749930331650,0.29414151,105050.0,105040.0,0.28728347]
[1749930331651,0.24043105,105050.0,105040.0,0.28728347]
[1749930332102,0.24043105,105050.0,105040.0,0.29680319]
[1749930332308,0.29002996,105050.0,105040.0,0.26776338]
[1749930332540,0.24894996,105050.0,105040.0,0.27276338]
[1749930332747,0.10063641,105050.0,105040.0,0.29180255]
[1749930332960,0.11015568,105050.0,105040.0,0.29180255]
[1749930333393,0.10063641,105050.0,105040.0,0.29180255]
[1749930333600,0.10063641,105050.0,105040.0,0.29280255]
[1749930333811,0.11015568,105050.0,105040.0,0.29280255]
[1749930334382,0.10063641,105050.0,105040.0,0.29280255]
[1749930334589,0.29102194,105050.0,105040.0,0.28328301]
[1749930334799,0.29102194,105050.0,105040.0,0.27376338]
[1749930335205,0.35174174,105050.0,105040.0,0.27376338]
[1749930336862,0.29102194,105050.0,105040.0,0.24520365]
[1749930337080,0.28150303,105050.0,105040.0,0.25472374]
[1749930337299,0.27198385,105050.0,105040.0,0.26424374]
[1749930337744,0.27198385,105050.0,105040.0,0.27376365]
[1749930337967,0.27198385,105050.0,105040.0,0.26424374]
[1749930338163,0.27198385,105050.0,105040.0,0.0548]